Cogmind - Beta 14 @@@ ROGUE MODE // 2024.12.06 @ 18:26:19 Player: SH-pl7 Result: Destroyed by S-27 Virus with Autogun Performance ------------- Evolutions (5) 2500 Regions Visited (5) 1000 Robots Destroyed (58) 290 Value Destroyed (2539) 2539 Prototype IDs (1) 20 Alien Tech Used (0) 0 Bonus (175) 175 TOTAL SCORE: 6524 Bonus ------- Follower Combat Kills 198 Friendly Fire -23 Cogmind --------- Core Integrity 0/1000 Matter 228/300 Energy 3/100 System Corruption 3% Temperature Warm (112) Movement Treading (240) Ox1 Location -5/Extension Parts ------- > --- POWER (1) -------- (None) > --- PROPULSION (5) --- Improved Medium Treads > --- UTILITY (8) ------ High-capacity Storage Unit Machine Analyzer System Shield > --- WEAPON (3) ------- Heavy Plasma Cannon Heavy Machine Gun Ripper > --- INVENTORY (20) --- Carbon-fiber Leg Improved Gravmag System Nuclear Pulse Array Authchip [R/Combat] Authchip [Propulsion] Authchip [Propulsion] Authchip [Propulsion] Authchip [Propulsion] Authchip [Device] Authchip [Armor] Dynamic Insulation System Grenade Launcher Peak State ------------ > --- POWER ------------ Light Antimatter Reactor > --- PROPULSION ------- Flexi-carbon Leg Armored Leg Armored Leg Armored Leg Armored Leg > --- UTILITY ---------- Advanced Heat Sink Advanced Heat Sink Advanced Heat Sink High-capacity Storage Unit Machine Analyzer Improved Weapon Cycler Point Defense System System Shield > --- WEAPON ----------- Plasma Rifle Wave Gun Heavy Phase Cannon > --- INVENTORY -------- Carbon-fiber Leg Carbon-fiber Leg Carbon-fiber Leg Improved Carbon-fiber Leg Improved Titanium Leg Improved VSS Leg Improved Gravmag System Nuclear Pulse Array Authchip [R/Combat] Authchip [Propulsion] Authchip [Propulsion] Authchip [Propulsion] Authchip [Propulsion] Authchip [Device] Authchip [Armor] Gauss Rifle Coil Gun KE Penetrator Grenade Launcher [Rating: 91] Favorites ----------- Power Ion Engine Engine Ion Engine Reactor Light Antimatter Reactor Propulsion Armored Leg Treads Medium Treads Leg Armored Leg Wheel Armored Wheel Hover Unit Antigrav System Flight Unit Cooled Nuclear Pulse Thruster Utility Targeting Computer Device Advanced Heat Sink Storage High-capacity Storage Unit Processor Targeting Computer Hackware System Shield Protection Layered Light Armor Plating Weapon Makeshift Shrapnel Gun Energy Gun Wave Gun Energy Cannon Heavy Phase Cannon Ballistic Gun Makeshift Shrapnel Gun Ballistic Cannon Advanced Assault Cannon Launcher Grenade Launcher Slashing Weapon Katana Build | -11 -10 -10 -7 -5 -5 ------- Run | Yrd Mat Sub Rec Fac Ext Slots Evolved 10 | . . . . 10 . Power . | . . . . . . Propulsion 3 | . . . . 3 . Utility 6 | . . . . 6 . Weapon 1 | . . . . 1 . Parts Attached 110 | 4 13 5 6 40 42 Power 10 | 1 2 2 . 1 4 Engine 9 | 1 2 2 . . 4 Core . | . . . . . . Reactor 1 | . . . . 1 . Propulsion 46 | . 4 . 4 21 17 Treads 12 | . 2 . 3 3 4 Leg 25 | . 2 . 1 9 13 Wheel 4 | . . . . 4 . Hover 4 | . . . . 4 . Flight 1 | . . . . 1 . Utility 20 | 1 3 . 1 7 8 Device 8 | . . . . 2 6 Storage 5 | 1 2 . 1 . 1 Processor 2 | . 1 . . 1 . Hackware 2 | . . . . 2 . Protection 3 | . . . . 2 1 Artifact . | . . . . . . Weapon 34 | 2 4 3 1 11 13 Energy Gun 11 | 1 1 1 . 5 3 Energy Cannon 4 | . . . . 2 2 Ballistic Gun 13 | 1 3 1 1 1 6 Ballistic Cannon 1 | . . . . 1 . Launcher 1 | . . 1 . . . Special Weapon . | . . . . . . Impact Weapon . | . . . . . . Slashing Weapon 4 | . . . . 2 2 Piercing Weapon . | . . . . . . Special Melee Weapon . | . . . . . . Unidentified Prototypes 1 | . . . . 1 . Parts Lost 54 | . 2 1 . 15 36 Power 6 | . . 1 . 1 4 Propulsion 22 | . 1 . . 7 14 Utility 10 | . . . . 1 9 Weapon 16 | . 1 . . 6 9 Highest Loss Streak 11 | . 1 1 . 4 11 To Critical Strikes 1 | . . . . . 1 Average Slot Usage (%) 91 | . 96 99 100 74 90 Engine 8 | . 14 13 14 2 1 Reactor 1 | . . . . 2 2 Treads 11 | . 16 . 25 6 . Leg 13 | . 9 28 2 11 27 Device 5 | . . . . 3 20 Storage 10 | . 14 14 14 5 5 Processor 11 | . 12 14 14 9 7 Hackware 2 | . . . . 4 5 Energy Gun 4 | . 8 7 . 3 7 Ballistic Gun 15 | . 19 20 28 4 4 Peak Build Rating 91 | 4 8 11 24 75 91 Average Rating 33 | 3 7 8 19 50 71 On Entrance 20 | . 4 7 11 24 75 Naked Turns . | . . . . . . Heaviest Build 107 | 10 11 13 51 79 107 Greatest Support 84 | 3 40 20 48 79 84 Greatest Overweight (x) 5 | 3 3 . 1 5 3 Average Overweight (x) . | 2 . . . 2 . Largest Inventory Capacity 25 | 8 25 8 20 20 20 Average Capacity 14 | 7 8 8 13 20 20 Most Carried 20 | 8 9 8 19 20 20 Average Carried 13 | 6 7 7 11 16 19 Final Capacity 20 | 8 8 8 20 20 20 Final Carried 19 | 8 7 8 19 18 13 Class Distribution -------------------- 67% | Mutant 15% | Scavenger-Mutant 12% | Scavenger-Gunner 3% | Scavenger-Tank Dominant Class ---------------- Mutant | -10/Materials Mutant | -10/Subcaves Mutant | -7/Recycling Mutant | -5/Factory Scavenger-Gunner | -5/Extension Resources | -11 -10 -10 -7 -5 -5 ----------- Run | Yrd Mat Sub Rec Fac Ext Matter Collected 1902 | 164 324 194 96 413 711 Remotely . | . . . . . . Salvage Created 2702 | . 441 196 56 913 1096 Parts 126 | . 27 15 2 38 44 Haulers Intercepted 1 | . 1 . . . . Recyclers Shooed . | . . . . . . Parts Field Recycled . | . . . . . . Retrieved Matter . | . . . . . . Parts Self-Destructed 13 | . . 13 . . . Prevented . | . . . . . . Kills | -11 -10 -10 -7 -5 -5 ------- Run | Yrd Mat Sub Rec Fac Ext Combat Hostiles Destroyed 49 | . 8 8 1 15 17 Melee 1 | . . . . 1 . Guns 33 | . 8 4 1 6 14 Cannons 10 | . . . . 8 2 AOE 4 | . . 4 . . . Classes Destroyed 14 | . 5 3 . 3 3 Builder 2 | . 1 . . . 1 Tunneler 1 | . 1 . . . . Hauler 1 | . 1 . . . . Operator 2 | . 1 . . 1 . Turret 2 | . . 2 . . . Watcher 1 | . . . . . 1 Swarmer 5 | . . 5 . . . Grunt 26 | . 8 2 . 6 10 Sentry 5 | . . 1 1 2 1 Specialist 2 | . . . . 2 . Hunter 1 | . . . . 1 . Programmer 4 | . . . . 4 . Behemoth 1 | . . . . . 1 Thug 1 | . . . . . 1 Butcher 3 | . . . . . 3 Guerrilla 1 | . . . . . 1 Best Kill Streak 5 | . 5 5 1 4 3 Combat Bots Only 5 | . 4 5 1 4 3 Max Kills in Single Turn 4 | . 2 4 1 1 1 Gunslinging . | . . . . . . Exploded 4 | . . 4 . . . Melee 1 | . . . . 1 . Uniques/NPCs Destroyed . | . . . . . . Combat | -11 -10 -10 -7 -5 -5 -------- Run | Yrd Mat Sub Rec Fac Ext Hostile Shots Fired 667 | . 56 77 36 141 357 Missed 195 | . 16 30 16 39 94 Damage Taken 8368 | . 545 356 149 1988 5330 Core 1112 | . 58 38 16 219 781 Absorbed by Shields . | . . . . . . Core Remaining (%) 77 | 100 . . 55 . . Volleys Fired 227 | . 50 19 4 56 98 Largest 3 | . 2 2 2 3 3 Hottest 234 | . 60 60 52 234 234 Shots Fired 489 | . 99 37 8 109 236 Gun 417 | . 99 36 8 54 220 Cannon 71 | . . . . 55 16 Launcher 1 | . . 1 . . . Special . | . . . . . . Kinetic 262 | . 88 35 8 12 119 Thermal 214 | . 10 . . 87 117 Explosive 1 | . . 1 . . . Electromagnetic 12 | . 1 1 . 10 . Robot Hit Streak 22 | . 22 7 4 20 15 Robot Miss Streak 6 | . 6 3 1 4 6 Penetration Max 1 | . . . . . 1 Secondary Targets 2 | . 1 . . . 1 Max Gunslinging Chain 1 | . 1 . . . 1 Shots Hit Robots 375 | . 73 28 7 84 183 Core Hits 135 | . 28 17 4 34 52 Critical Kills 2 | . . 1 . . 1 Critical Parts Destroyed 3 | . . . . . 3 Critical Strikes 12 | . . 1 . 2 9 Burn 4 | . . . . 2 2 Meltdown 1 | . . . . . 1 Destroy 4 | . . 1 . . 3 Sever 3 | . . . . . 3 Melee Attacks 28 | . . . . 15 13 Impact . | . . . . . . Slashing 28 | . . . . 15 13 Piercing . | . . . . . . Sneak Attacks . | . . . . . . Combat Hostiles . | . . . . . . Follow-up Attacks . | . . . . . . Damage Inflicted 8191 | . 742 605 129 2384 4331 Guns 5526 | . 742 416 129 805 3434 Cannons 1718 | . . . . 1237 481 Explosions 339 | . . 189 . 150 . Melee 594 | . . . . 192 402 Ramming 14 | . . . . . 14 Kinetic 3282 | . 649 401 129 215 1888 Thermal 3924 | . 93 . . 1804 2027 Explosive 189 | . . 189 . . . Electromagnetic 188 | . . 15 . 173 . Impact . | . . . . . . Slashing 594 | . . . . 192 402 Piercing . | . . . . . . Highest Corruption 3 | . . . . 3 3 Average Corruption 2 | . . . . 1 3 Corruption Purged . | . . . . . . Corruption Blocked . | . . . . . . Effects 29 | . . . . 2 27 Message Errors 5 | . . . . . 5 Matter Fused 7 | . . . . 1 6 Heat Flow Errors 4 | . . . . . 4 Energy Discharges 4 | . . . . . 4 Parts Rejected 1 | . . . . . 1 Data Loss (minor) 3 | . . . . . 3 Data Loss (major) 2 | . . . . . 2 Misfires 1 | . . . . . 1 Weapon Failures 2 | . . . . 1 1 Overload Shots . | . . . . . . Overflow Damage 36 | . . . . 36 . Projectiles 32 | . . . . 32 . Explosions . | . . . . . . Melee 4 | . . . . 4 . Knockbacks 3 | . . . . 3 . Impact . | . . . . . . Kinetic 3 | . . . . 3 . Secondary . | . . . . . . Self-Inflicted Damage . | . . . . . . Shots . | . . . . . . Rammed . | . . . . . . Targets Rammed 1 | . . . . . 1 Kicked 1 | . . . . . 1 Crushed . | . . . . . . Highest Temperature 459 | . 91 . 18 459 435 Average Temperature 127 | . 25 . 11 154 155 Received Heat Transfer 2894 | . 288 192 36 624 1754 Effects 5 | . . . . 1 4 Energy Bleed 2 | . . . . 1 1 Interference 2 | . . . . . 2 Short Circuit 1 | . . . . . 1 Siege Activations . | . . . . . . Robots Corrupted . | . . . . . . Combat Hostiles . | . . . . . . Parts Fried . | . . . . . . Impact Corruptions . | . . . . . . Robots Melted 1 | . . . . . 1 Combat Hostiles 1 | . . . . . 1 Parts Melted 13 | . . . . 7 6 Heat Transferred 6291 | . 200 . . 2518 3573 Parts Sabotaged . | . . . . . . Parts Stolen . | . . . . . . Parts Stripped . | . . . . . . Power Chain Reactions 1 | . . . . 1 . Alert | -11 -10 -10 -7 -5 -5 ------- Run | Yrd Mat Sub Rec Fac Ext Peak Influence 399 | . 166 . 53 206 399 Initial 100 | . . . 48 50 100 Average 81 | . 70 . 14 75 188 Maximum Alert Level 1 | . . . . 1 1 Low Security (%) 89 | 100 100 . 100 99 58 Level 1 10 | . . . . . 41 Level 2 . | . . . . . . Level 3 . | . . . . . . Level 4 . | . . . . . . Level 5 . | . . . . . . High Security . | . . . . . . Max Security . | . . . . . . Squads Dispatched 7 | . 2 . . 4 1 Investigation 2 | . 1 . . . 1 Extermination 2 | . . . . 2 . Reinforcement 3 | . 1 . . 2 . Assault . | . . . . . . Garrison . | . . . . . . Intercept . | . . . . . . Searches Triggered . | . . . . . . Construction Impeded . | . . . . . . Haulers Reinforced . | . . . . . . Active Scanning Responses . | . . . . . . Cargo Convoy Interrupts . | . . . . . . Stealth | -11 -10 -10 -7 -5 -5 --------- Run | Yrd Mat Sub Rec Fac Ext Distress Signals 3 | . 3 . . . . Communications Jammed . | . . . . . . Distress Signals . | . . . . . . Times Spotted 84 | . 20 10 1 21 32 Peak Tracking Total 10 | . 7 5 1 5 10 Tactical Retreats 6 | . 1 1 . 1 3 Traps | -11 -10 -10 -7 -5 -5 ------- Run | Yrd Mat Sub Rec Fac Ext Traps Triggered 2 | . 2 . . . . Indirectly . | . . . . . . Trap Hack Attempts . | . . . . . . Triggered . | . . . . . . Disarmed . | . . . . . . Reprogrammed . | . . . . . . Reused . | . . . . . . Traps Extracted . | . . . . . . Installed . | . . . . . . Triggered . | . . . . . . Machines | -11 -10 -10 -7 -5 -5 ---------- Run | Yrd Mat Sub Rec Fac Ext Machines Disabled 2 | . . 1 . 1 . Max in Single Turn 1 | . . 1 . 1 . Machines Repaired . | . . . . . . Machines Dismantled . | . . . . . . Machines Sabotaged . | . . . . . . Overloaded Fab Kills . | . . . . . . Hacking | -11 -10 -10 -7 -5 -5 --------- Run | Yrd Mat Sub Rec Fac Ext Machines Accessed 12 | . . 1 5 . 6 Terminals 8 | . . . 2 . 6 Fabricators . | . . . . . . Repair Stations . | . . . . . . Recycling Units 3 | . . . 3 . . Scanalyzers . | . . . . . . Garrison Access . | . . . . . . Total Hacks 24 | . . 3 10 . 11 Successful 13 | . . 3 4 . 6 Failed 11 | . . . 6 . 5 Catastrophic 2 | . . . . . 2 Database Lockouts . | . . . . . . Manual 8 | . . . 2 . 6 Terminals 14 | . . . 3 . 11 Fabricators . | . . . . . . Repair Stations . | . . . . . . Recycling Units 7 | . . . 7 . . Scanalyzers . | . . . . . . Garrison Access . | . . . . . . Terminal Hacks 7 | . . 3 . . 4 Record 3 | . . 3 . . . Open Door 3 | . . . . . 3 Zone Layout 1 | . . . . . 1 Fabricator Hacks . | . . . . . . Repair Station Hacks . | . . . . . . Recycling Unit Hacks 3 | . . . 3 . . Report Inventory 3 | . . . 3 . . Scanalyzer . | . . . . . . Garrison Access Hacks . | . . . . . . Unauthorized Hacks 3 | . . . 1 . 2 Terminals 3 | . . . 1 . 2 Botnet 3 | . . . 1 . 2 Fabricators . | . . . . . . Repair Stations . | . . . . . . Recycling Units . | . . . . . . Scanalyzers . | . . . . . . Garrison Access . | . . . . . . Data Cores Recovered 1 | . . . . 1 . Used . | . . . . . . Hacking Detections 7 | . . . 4 . 3 Full Trace Events 2 | . . . 1 . 1 Feedback Events . | . . . . . . Feedback Blocked . | . . . . . . Robot Schematics Acquired . | . . . . . . Robots Built . | . . . . . . Authchips . | . . . . . . Time . | . . . . . . Total Robot Build Rating . | . . . . . . Part Schematics Acquired . | . . . . . . Parts Built . | . . . . . . Authchips . | . . . . . . Time . | . . . . . . Total Part Build Rating . | . . . . . . Parts Repaired . | . . . . . . Time . | . . . . . . Parts Recycled . | . . . . . . Recycled Matter . | . . . . . . Retrieved Matter . | . . . . . . Retrieved Components . | . . . . . . Parts Scanalyzed . | . . . . . . Part Schematics Acquired . | . . . . . . Parts Damaged . | . . . . . . Bothacking | -11 -10 -10 -7 -5 -5 ------------ Run | Yrd Mat Sub Rec Fac Ext Used RIF Installer . | . . . . . . Robots Hacked . | . . . . . . Non-combat . | . . . . . . Combat . | . . . . . . Robot Hacks Applied . | . . . . . . Relay Couplers Released . | . . . . . . Fabnet Peak Effective % . | . . . . . . Robots Rewired . | . . . . . . Allies Hacked . | . . . . . . Hacks Repelled . | . . . . . . Allies | -11 -10 -10 -7 -5 -5 -------- Run | Yrd Mat Sub Rec Fac Ext Total Allies 5 | . . . . . 5 Largest Group 4 | . . . . . 4 Highest-Rated Group 111 | . . . . . 111 Highest-Rated Ally 39 | . . . . . 39 Total Orders . | . . . . . . Ally Attacks 25 | . . . . . 25 Total Damage 496 | . . . . . 496 Kills 5 | . . . . . 5 Allies Corrupted . | . . . . . . Allies Melted 1 | . . . . . 1 Intel | -11 -10 -10 -7 -5 -5 ------- Run | Yrd Mat Sub Rec Fac Ext Robot Analysis Total . | . . . . . . Derelict Logs Recovered 2 | . . 2 . . . Drone Launches . | . . . . . . Drone Recoveries . | . . . . . . Exploration | -11 -10 -10 -7 -5 -5 ------------- Run | Yrd Mat Sub Rec Fac Ext Turns Passed 5674 | 119 1109 511 1549 1134 1252 Spaces Moved 2676 | 68 357 356 803 512 580 Core 86 | 68 18 . . . . Treads 1086 | . 264 . 715 101 6 Legs 1254 | . 75 356 88 161 574 Wheels 248 | . . . . 248 . Hover 2 | . . . . 2 . Flight . | . . . . . . Fastest Speed 50 | 50 120 120 120 120 114 Average Speed 152 | 153 153 120 186 154 120 Slowest Speed 330 | 200 200 120 245 245 330 Overloaded Moves . | . . . . . . Propulsion Burnouts . | . . . . . . Robots Hopped . | . . . . . . Cave-ins Triggered . | . . . . . . Exploration Rate (%) 41 | 4 70 30 93 11 38 Regions Visited 5 Branch Regions 3 Pre-discovered Areas 1 | . . 1 . . . Known Exits Taken . | . . . . . . Unknown Exits Taken 5 | 1 1 1 1 1 . Scrap Searched . | . . . . . . Spaces Dug 13 | . . . . 13 . Terrain Destroyed 34 | . . 4 . 26 4 Melee 7 | . . . . 7 . Projectile 19 | . . . . 15 4 AOE 8 | . . 4 . 4 . Terrain Rammed . | . . . . . . Walls Destroyed . | . . . . . . Machines Disabled . | . . . . . . Actions | -11 -10 -10 -7 -5 -5 --------- Run | Yrd Mat Sub Rec Fac Ext Total 3831 | 81 830 406 851 726 937 Wait 678 | 2 394 21 14 76 171 Move 2671 | 67 356 355 802 511 580 Hop . | . . . . . . Pick Up 64 | 8 8 3 15 16 14 Fast Attach 34 | 4 4 1 2 10 13 Attach 39 | . 4 1 . 18 16 Detach . | . . . . . . Swap 37 | . 5 3 4 12 13 Drop 41 | . 9 3 10 4 15 Fire 227 | . 50 19 4 56 98 Melee 28 | . . . . 15 13 Ram . | . . . . . . Kick 1 | . . . . . 1 Crush . | . . . . . . Escape Stasis 2 | . . . . . 2 Rewire 9 | . . . . 8 1 Trap . | . . . . . . Miscellaneous . | . . . . . . Route ------- -11/Scrapyard -10/Materials (discovered 3 exits: [*Mat] / [*Min] / *Sub) -10/Subcaves (discovered 2 exits: [*Mat] / *Rec) -7/Recycling -5/Factory -5/Extension History --------- Turn | Location | Event 6 | -11/Scrapyard | Discovered new exit (range 15) 120 | -11/Scrapyard | Entered Materials 317 | -10/Materials | Build established: Mutant 576 | -10/Materials | Discovered new exit (range 16) 814 | -10/Materials | Discovered new exit (range 15) 1214 | -10/Materials | Discovered new exit (range 6) 1229 | -10/Materials | Entered Subcaves 1360 | -10/Subcaves | Visited Clippyterm 1364 | -10/Subcaves | Learned Research machine intel 1454 | -10/Subcaves | Learned 4 Materials zone layouts 1655 | -10/Subcaves | Discovered new exit (range 8) 1703 | -10/Subcaves | Discovered new exit (range 11) 1740 | -10/Subcaves | Entered Recycling 2113 | -7/Recycling | Discovered new exit (range 15) 3289 | -7/Recycling | Entered Factory 3289 | -5/Factory | Evolved 10 slots: Propulsion x3, Utility x6, Weapon x1 3881 | -5/Factory | Lost 4 parts (1p2n1w) 4041 | -5/Factory | Lost 3 parts (1n2w) 4207 | -5/Factory | Lost 4 parts (2n2w) 4248 | -5/Factory | Discovered new exit (range 14) 4423 | -5/Factory | Entered Extension 4554 | -5/Extension | Build established: Scavenger-Gunner 4567 | -5/Extension | Lost 3 parts (3u) 4584 | -5/Extension | Rescued a captive Derelict 4592 | -5/Extension | Rescued a captive Derelict 4599 | -5/Extension | Rescued a captive Derelict 4600 | -5/Extension | Rescued a captive Derelict 4898 | -5/Extension | Rescued a captive Derelict 4945 | -5/Extension | Spotted B-75 Beast 5204 | -5/Extension | Destroyed B-75 Beast 5224 | -5/Extension | Lost 10 parts (1p4n2u3w) 5264 | -5/Extension | Build established: Scavenger-Mutant 5373 | -5/Extension | Disrupted transfer network 5485 | -5/Extension | Spotted B-75 Beast 5558 | -5/Extension | Core integrity fell below 50% 5635 | -5/Extension | Lost 9 parts (1p3n2u3w) 5652 | -5/Extension | Core integrity fell below 20% 5675 | -5/Extension | Destroyed by S-27 Virus with Autogun Last Messages --------------- 05663_ Acquired Lgt. Deuterium Engine. 05665_ Slug penetrates Wall. 05665_ Penetrated by Slug. 05666_ System corrupted: Heat flow error (+264). 05666_ Slug penetrates Wall. 05666_ Penetrated by Slug. 05667_ Acquired Hvy. Plasma Cannon. 05668_ Imp. Titanium Leg destroyed. 05668_ Penetrated by Slug. 05670_ Lgt. Deuterium Engine destroyed. 05670_ Slug penetrates Wall. 05672_ Penetrated by Slug. 05672_ Imp. Medium Treads destroyed. 05673_ Penetrated by Slug. 05673_ Critical hit (Destroy). 05673_ Imp. Carbon-fiber Leg destroyed. 05675_ Acquired Hvy. Machine Gun. 05675_ Penetrated by Slug. 05675_ Imp. Heat Sink destroyed. 05675_ Imp. Medium Treads destroyed. Map ----- +----------------------------------------------------+ | | | | | | | | | | | | | | | | | | | | | | | | | | | ?????????????????????????????????????????????????? | | ???????????????#####?????????????????????????????? | | ???????????#####"T"###???????????????????????????? | | ???????????# T !#???????????????????????????? | | ############ !! #???????????????????????????? | | + ^ ! ##??????????????????????????? | | ### ! %#??????????????????????????? | | #?##+##+######??????????????????????????? | | #??#^ #???????????????????????????????? | | #??# #####???????????????????????????? | | ###### #### ###;#########???????????????????? | | #?## % ## # % hs #???????????????????? | | #?# ### s! @ #???????????????????? | | #?# ### % h % #???????????????????? | | #?# % s s %%% #???????????????????? | | #?# %#;## ###########;# ##??????????????????? | | #?# %#?#T ####??????### ##??????????????????? | | #?#######?## ##??????????# ##??????????????????? | | #?????????## ##??????????# #???????????????????? | | #??????????###???????????# #???????????????????? | | ###????????????????????????# #???????????????????? | | ???????????????????????????# #???????????????????? | | ???????????????????????????#%#???????????????????? | | ???????????????????????????# #???????????????????? | | ???????????????????????????# "???????????????????? | | ???????????????????????????# "???????????????????? | | ???????????????????????????# #???????????????????? | | ???????????????????????????# #???????????????????? | | ???????????????????????????# #???????????????????? | | ???????????????????????????# #???????????????????? | | ???????????????????????????#%#???????????????????? | | ?????????????????????????###%"## ## #????????????? | | ?????????????????????????#" "" ?????????? | | ?????????????????????????# " "????????? | | ?????????????????????????# %% ???????? | | ?????????????????????????# % % ???????? | | ?????????????????????????# ???????? | +----------------------------------------------------+ Best States ------------- Heat Dissipation 97 Energy Generation 21 Energy Capacity 290 Matter Stores 300 Matter Capacity 300 Sight Range 16 Terrain Scan Density 10 Armor Coverage 225 Point Defense Rating 80 Weapon Cycling 20 Evasion (%) 55 Targeting Accuracy 5 Recoil Reduction 4 Offensive Hacking 10 Defensive Hacking 10 Authchip Count 7 Item Schematics ----------------- None Robot Schematics ------------------ None Fabricated ------------ Nothing Alien Tech Used ----------------- None Achievements -------------- None Challenges ------------ None Game ------ Seed LobotomyReinforcedHumpback Manual? 0 Play Time 00:55:39 Cumulative 111.9 hours Start 2024.12.06 @ 17:15:04 End 2024.12.06 @ 18:26:19 Sessions 1 Manual Loads 0 Difficulty Rogue Special Mode None Game No. 113 Rogue 113 Adventurer 0 Explorer 0 Win Type - Total 1 Types 1/0/0/0/0/0/0/0/0 Lore% 15 Gallery% 44 Achievement% 39 Wizard Run 0 Options --------- Layout 2 ASCII 0 Keyboard 0 Movement Mouse Keybinds 0 Fullscreen 2 Font 16/SmallcapsGlow Map View 55x47 Zoom Use 15% Tactical HUD 1 Map Filters NONE Filters NONE Steam 1 RUN: 24137eae-0486-4646-9fef-5939e282933c